bitfinex/quotes_BTCUSD_20250623
["timestamp","ask_amount","ask_price","bid_price","bid_amount"]
[1750683913390,0.74519725,101750.0,101740.0,0.0616]
[1750683914051,0.74519725,101750.0,101740.0,0.16189939]
[1750683914298,0.73556103,101750.0,101740.0,0.16189939]
[1750683915371,0.74545665,101750.0,101740.0,0.16189939]
[1750683916414,0.73556103,101750.0,101740.0,0.16189939]
[1750683916627,0.34404,101750.0,101740.0,0.16189939]
[1750683916884,0.73556103,101750.0,101740.0,0.16189939]
[1750683917975,0.39556103,101750.0,101740.0,0.16189939]
[1750683919997,0.00404,101750.0,101740.0,0.16189939]
[1750683920204,0.39556103,101750.0,101740.0,0.16189939]
[1750683921892,0.21382115,101750.0,101740.0,0.16189939]
[1750683925283,0.21382115,101750.0,101740.0,0.0307]
[1750683925717,0.21382115,101750.0,101740.0,0.0609]
[1750683926151,0.21382115,101750.0,101740.0,0.0307]
[1750683927056,0.21382115,101750.0,101740.0,0.0608]
[1750683929557,0.39152103,101750.0,101740.0,0.0608]
[1750683938010,0.39152103,101750.0,101740.0,0.0001]
[1750683938011,0.42182103,101750.0,101740.0,0.0001]
[1750683938417,0.39152103,101750.0,101740.0,0.0001]
[1750683938655,0.42182103,101750.0,101740.0,0.0001]
[1750683939484,0.76182103,101750.0,101740.0,0.0001]
[1750683939701,0.79222103,101750.0,101740.0,0.0001]
[1750683940389,6.23374206,101750.0,101740.0,0.0001]
[1750683940593,5.84222103,101750.0,101740.0,0.0001]
[1750683942145,6.23374206,101750.0,101740.0,0.0001]
[1750683942368,6.25733383,101750.0,101740.0,0.0001]
[1750683942608,6.28497739,101750.0,101740.0,0.0001]
[1750683942824,6.26654835,101750.0,101740.0,0.0001]
[1750683943905,6.38527185,101750.0,101740.0,0.0001]
[1750683944332,6.42823185,101750.0,101740.0,0.0001]
[1750683945016,6.4282289,101750.0,101740.0,0.0001]
[1750683945180,6.4292289,101750.0,101740.0,0.0001]
[1750683945606,6.41142045,101750.0,101740.0,0.0001]
[1750683946026,6.44098236,101750.0,101740.0,0.0001]
[1750683946444,6.44098236,101750.0,101730.0,0.0001]
[1750683946445,6.45080969,101750.0,101720.0,0.0678]
[1750683946661,1.12304206,101730.0,101720.0,0.004]
[1750683947542,1.15614206,101730.0,101720.0,0.004]
[1750683947759,1.15614206,101730.0,101720.0,0.007]
[1750683948595,1.12304206,101730.0,101720.0,0.009]
[1750683949061,1.18654206,101730.0,101720.0,0.004]
[1750683949290,6.23654206,101730.0,101720.0,0.004]
[1750683949489,6.26734209,101730.0,101720.0,0.004]
[1750683949915,6.23454209,101730.0,101720.0,0.004]
[1750683950183,6.20384209,101730.0,101720.0,0.004]
[1750683953842,6.23604209,101730.0,101720.0,0.004]
[1750683954681,6.20384209,101730.0,101720.0,0.004]
[1750683962890,6.00311906,101730.0,101720.0,0.004]
[1750683965552,5.42080003,101730.0,101720.0,0.004]
[1750683965762,6.20384209,101730.0,101720.0,0.004]
[1750683966613,6.20384209,101730.0,101720.0,0.0687]
[1750683966868,5.42080003,101730.0,101720.0,0.0687]
[1750683967090,0.341,101730.0,101720.0,0.0687]
[1750683967309,0.001,101730.0,101720.0,0.16899939]
[1750683967963,1.22702103,101740.0,101730.0,0.0643]
[1750683970052,0.8365,101740.0,101730.0,0.16459939]
[1750683970723,1.22802103,101740.0,101730.0,0.16459939]
[1750683970926,0.73252103,101740.0,101730.0,0.16459939]
[1750683971337,0.341,101740.0,101730.0,0.16459939]
[1750683971547,0.33995085,101740.0,101730.0,0.16459939]
[1750683971991,0.39152103,101750.0,101740.0,0.0638]
[1750683972818,0.39152103,101750.0,101740.0,0.16409939]
[1750683973278,2.16219026,101760.0,101750.0,0.0622]
[1750683973482,2.89371129,101760.0,101750.0,0.0622]
[1750683973682,2.89371129,101760.0,101750.0,0.0612]
[1750683974368,2.50219026,101760.0,101750.0,0.0612]
[1750683974575,2.89571129,101760.0,101750.0,0.0612]
[1750683976263,3.28723232,101760.0,101750.0,0.0612]
[1750683976689,3.28723232,101760.0,101750.0,0.031]
[1750683976929,5.05,101750.0,101740.0,0.0611]
[1750683977138,5.44152103,101750.0,101740.0,0.0611]
[1750683977350,0.39152103,101750.0,101740.0,0.0611]
[1750683978876,5.05,101740.0,101730.0,0.0619]
[1750683979091,5.44152103,101740.0,101730.0,0.16219939]
[1750683979300,0.39152103,101740.0,101730.0,0.16219939]
[1750683980163,0.39152103,101740.0,101730.0,0.16319939]
[1750683980603,0.39152103,101740.0,101730.0,0.16419939]
[1750683981056,0.34,101750.0,101740.0,0.0632]
[1750683981265,0.73152103,101750.0,101740.0,0.0632]
[1750683983201,0.73252103,101750.0,101740.0,0.0632]
[1750683984081,0.341,101750.0,101740.0,0.0632]
[1750683984296,0.73252103,101750.0,101740.0,0.0632]
[1750683985386,0.341,101750.0,101740.0,0.0632]
[1750683985606,0.73252103,101750.0,101740.0,0.0632]
[1750683989266,0.001,101750.0,101740.0,0.16349939]
[1750683990469,2.90419829,101760.0,101740.0,0.16349939]
[1750683990678,3.24419829,101760.0,101750.0,0.0634]
[1750683992316,3.24519829,101760.0,101750.0,0.0634]
[1750683992949,3.24419829,101760.0,101750.0,0.0634]
[1750683993161,3.24519829,101760.0,101750.0,0.0634]
[1750684001119,2.85367726,101760.0,101750.0,0.0634]
[1750684001340,3.24519829,101760.0,101750.0,0.0634]
[1750684002949,2.51367726,101760.0,101750.0,0.16369939]
[1750684004282,2.50298482,101760.0,101750.0,0.16369939]
[1750684004711,2.50298482,101760.0,101750.0,0.16569939]
[1750684005133,2.50298482,101760.0,101750.0,0.57176127]
[1750684005573,2.50298482,101760.0,101750.0,0.34300024]
[1750684006222,2.03991646,101760.0,101750.0,0.34300024]
[1750684006680,2.03991646,101760.0,101750.0,0.16569939]
[1750684007119,2.82295852,101760.0,101750.0,0.0654]
[1750684007332,2.43143749,101760.0,101750.0,0.0654]
[1750684007752,2.43143749,101760.0,101750.0,0.0332]
[1750684009033,2.43143749,101760.0,101750.0,0.0663]
[1750684009917,2.00748482,101760.0,101750.0,0.0663]
[1750684010136,2.39900585,101760.0,101750.0,0.0663]
[1750684012985,2.00748482,101760.0,101750.0,0.16659939]
[1750684020816,2.00748482,101760.0,101750.0,0.32931939]
[1750684029665,2.00748482,101760.0,101750.0,0.16659939]
[1750684029878,2.39900585,101760.0,101750.0,0.32931939]
[1750684031398,2.17734453,101760.0,101750.0,0.32931939]
[1750684033636,2.17734453,101760.0,101750.0,0.72084042]
[1750684033637,1.7858235,101760.0,101750.0,0.72084042]
[1750684033849,1.7858235,101760.0,101750.0,0.73538127]
[1750684034284,1.7858235,101760.0,101750.0,0.34386024]
[1750684039863,1.56482295,101760.0,101750.0,0.34386024]
[1750684043146,1.56482295,101760.0,101750.0,0.16659939]
[1750684043356,1.56482295,101760.0,101750.0,0.32927939]
[1750684049958,1.56486295,101760.0,101750.0,0.32927939]
[1750684069701,1.95638398,101760.0,101750.0,0.16659939]
[1750684069922,2.34790501,101760.0,101750.0,0.10229939]
[1750684070168,2.41080501,101760.0,101750.0,0.10229939]
[1750684070394,2.41080501,101760.0,101750.0,0.16464]
[1750684070617,2.41080501,101760.0,101750.0,0.002]
[1750684070854,2.41080501,101760.0,101750.0,0.16464]
[1750684071301,2.41080501,101760.0,101750.0,0.002]
[1750684073073,2.01928398,101760.0,101750.0,0.002]
[1750684073525,1.98738398,101760.0,101750.0,0.10229939]
[1750684073748,1.98738398,101760.0,101750.0,0.16469939]
[1750684073749,1.56486295,101760.0,101750.0,0.16469939]
[1750684075491,1.56486295,101760.0,101750.0,0.64990259]
[1750684075932,1.56486295,101760.0,101750.0,0.25838156]
[1750684076594,1.56486295,101760.0,101750.0,0.64990259]
[1750684077649,1.56486295,101760.0,101750.0,0.64790259]
[1750684077872,1.56486295,101760.0,101750.0,0.65690259]
[1750684078294,1.56486295,101760.0,101750.0,0.57776127]
[1750684081172,1.56486295,101760.0,101750.0,0.18624024]
[1750684081390,1.95638398,101760.0,101750.0,0.33429939]
[1750684081840,1.95638398,101760.0,101750.0,0.30349939]
[1750684082260,1.95638398,101760.0,101750.0,0.10929939]
[1750684082478,1.98708398,101760.0,101750.0,0.26789939]
[1750684082691,1.95638398,101760.0,101750.0,0.26789939]
[1750684082907,1.95638398,101760.0,101750.0,0.26989939]
[1750684083118,1.95638398,101760.0,101750.0,0.26489939]
[1750684083544,1.95638398,101760.0,101750.0,0.26789939]
[1750684083727,1.98868398,101760.0,101750.0,0.10529939]
[1750684084044,2.02068398,101760.0,101750.0,0.10529939]
[1750684084274,2.02068398,101760.0,101750.0,0.26789939]
[1750684084492,2.02068398,101760.0,101750.0,0.10529939]
[1750684084708,2.02068398,101760.0,101750.0,0.26789939]
[1750684086870,1.62916295,101760.0,101750.0,0.26789939]
[1750684087084,2.02068398,101760.0,101750.0,0.26789939]
[1750684088427,1.62916295,101760.0,101750.0,0.26789939]
[1750684088658,2.02068398,101760.0,101750.0,0.26789939]
[1750684089528,2.02068398,101760.0,101750.0,0.1676]
[1750684089743,1.98868398,101760.0,101750.0,0.1676]
[1750684090219,1.98868398,101760.0,101750.0,0.1626]
[1750684090431,1.98868398,101760.0,101750.0,0.1636]
[1750684090857,1.95638398,101760.0,101750.0,0.1636]
[1750684091079,1.95638398,101760.0,101750.0,0.001]
[1750684091300,1.98888398,101760.0,101750.0,0.001]
[1750684091518,2.02078398,101760.0,101750.0,0.001]
[1750684091735,2.02078398,101760.0,101750.0,0.002]
[1750684092376,1.62926295,101760.0,101750.0,0.002]
[1750684092608,1.98888398,101760.0,101750.0,0.002]
[1750684093249,1.95638398,101760.0,101750.0,0.002]
[1750684093485,1.59736295,101760.0,101750.0,0.002]
[1750684093703,1.98888398,101760.0,101750.0,0.002]
[1750684095794,1.95638398,101760.0,101750.0,0.002]
[1750684099578,2.41090501,101760.0,101750.0,0.002]
[1750684101024,2.37950501,101760.0,101750.0,0.002]
[1750684101350,1.95638398,101760.0,101750.0,0.002]
[1750684102967,1.98828398,101760.0,101750.0,0.002]
[1750684104499,7.80300501,101760.0,101750.0,0.002]
[1750684105171,1.96996295,101760.0,101750.0,0.002]
[1750684105360,2.75300501,101760.0,101750.0,0.002]
[1750684106272,2.32828398,101760.0,101750.0,0.002]
[1750684106495,2.71980501,101760.0,101750.0,0.002]
[1750684106723,0.0313,101730.0,101720.0,0.004]
[1750684106952,0.0313,101730.0,101710.0,0.0195]
[1750684106953,5.05,101720.0,101710.0,0.0195]
[1750684107183,5.39,101700.0,101690.0,0.0001]
[1750684107409,6.44578866,101700.0,101680.0,0.0041]
[1750684107656,6.62797876,101690.0,101680.0,0.0041]
[1750684107890,6.62797876,101690.0,101670.0,0.0101]
[1750684107891,5.68139924,101680.0,101670.0,0.0101]
[1750684108110,6.28152103,101660.0,101650.0,0.0101]
[1750684108332,5.82428103,101660.0,101650.0,0.0101]
[1750684108574,5.82428103,101660.0,101650.0,1e-08]
[1750684108820,0.34,101650.0,101640.0,0.0041]
[1750684109031,0.73152103,101650.0,101640.0,0.10439939]
[1750684109249,0.73152103,101650.0,101640.0,0.10486124]
[1750684109689,0.75896154,101650.0,101640.0,0.10486124]
[1750684109901,0.73152103,101650.0,101640.0,0.10486124]
[1750684110342,0.83082672,101650.0,101640.0,0.10486124]
[1750684111002,0.83082672,101650.0,101640.0,0.00456185]
[1750684111448,5.88082672,101650.0,101640.0,0.00456185]
[1750684111670,5.39,101650.0,101640.0,0.00656185]
[1750684111923,0.83082672,101650.0,101640.0,0.00756185]
[1750684113040,6.47195283,101650.0,101640.0,0.00756185]
[1750684113260,6.47195283,101650.0,101630.0,0.1101]
[1750684113261,6.37165344,101640.0,101630.0,0.1101]
[1750684113481,6.37165344,101640.0,101630.0,0.1101908]
[1750684114128,5.4328,101640.0,101630.0,0.1101908]
[1750684114369,5.92362672,101640.0,101630.0,0.1101908]
[1750684114589,6.41445344,101640.0,101630.0,0.1101908]
[1750684115022,6.44504144,101640.0,101630.0,0.1121908]
[1750684116376,6.44504144,101640.0,101630.0,0.03726409]
[1750684116377,6.47614144,101640.0,101630.0,0.03726409]
[1750684116583,6.63379241,101640.0,101620.0,0.0001]
[1750684116803,5.88082672,101630.0,101620.0,0.00023634]
[1750684117917,5.39,101630.0,101620.0,0.00023634]
[1750684118137,0.87550672,101630.0,101620.0,0.00023634]
[1750684118352,0.87950672,101630.0,101620.0,0.00023634]
[1750684118820,5.396,101630.0,101620.0,0.00023634]
[1750684119061,0.346,101630.0,101620.0,0.14597658]
[1750684119314,0.344,101630.0,101620.0,0.14597658]
[1750684119544,0.004,101630.0,101620.0,0.14597658]
[1750684119771,0.52041472,101640.0,101620.0,0.17727658]
[1750684120015,0.52041472,101640.0,101630.0,0.10029939]
[1750684121140,0.002,101630.0,101620.0,0.01477719]
[1750684121378,0.029588,101640.0,101630.0,0.04674085]
[1750684121585,0.98632672,101650.0,101630.0,0.17834024]
[1750684121806,0.004,101640.0,101630.0,0.17834024]
[1750684122031,0.002,101640.0,101630.0,0.17834024]
[1750684122475,1.01590972,101650.0,101630.0,0.17634024]
[1750684122696,1.35590972,101650.0,101640.0,0.10029939]
[1750684122922,0.867083,101650.0,101640.0,0.13049939]
[1750684123147,0.002,101650.0,101640.0,0.16359939]
[1750684124039,0.34,101660.0,101640.0,0.16359939]
[1750684124251,0.34,101660.0,101650.0,0.0303]
[1750684124466,0.34,101660.0,101650.0,0.13059939]
[1750684125102,0.83082672,101660.0,101650.0,0.10029939]
[1750684125356,5.05,101660.0,101650.0,0.10029939]
[1750684125579,0.4955,101680.0,101660.0,0.01454085]
[1750684125805,0.98632672,101680.0,101660.0,0.11484024]
[1750684126032,0.98632672,101680.0,101660.0,0.14764024]
[1750684126268,0.39368181,101690.0,101670.0,0.13309939]
[1750684126269,5.05,101690.0,101670.0,0.13309939]
[1750684126489,0.38473,101700.0,101680.0,0.0328]
[1750684126713,0.87555672,101700.0,101680.0,0.13309939]
[1750684126924,0.0004616,101690.0,101680.0,0.13309939]
[1750684127546,0.0004616,101690.0,101680.0,0.13209939]
[1750684127814,0.0004616,101690.0,101680.0,0.17984024]
[1750684128026,0.0004616,101690.0,101680.0,0.18084024]
[1750684128884,0.0004616,101690.0,101680.0,0.18184024]
[1750684130662,0.49128832,101690.0,101680.0,0.002]
[1750684133310,0.27412305,101690.0,101680.0,0.002]
[1750684136417,0.63757533,101690.0,101680.0,0.002]
[1750684136642,5.68757533,101690.0,101680.0,0.002]
[1750684136868,5.71714933,101690.0,101680.0,0.002]
[1750684137088,5.44302628,101690.0,101680.0,0.002]
[1750684137324,6.06505239,101690.0,101680.0,0.002]
[1750684137535,6.08337669,101690.0,101680.0,0.002]
[1750684137757,6.08337669,101690.0,101680.0,0.001]
[1750684137974,5.05,101680.0,101650.0,0.11058]
[1750684138191,0.49082672,101670.0,101650.0,0.16619939]
[1750684138417,0.65842672,101680.0,101650.0,0.16619939]
[1750684138635,0.49082672,101670.0,101650.0,0.13299939]
[1750684138852,0.51428446,101670.0,101650.0,0.13299939]
[1750684139519,0.53260975,101670.0,101650.0,0.13299939]
[1750684140013,0.04178303,101670.0,101650.0,0.13299939]
[1750684140223,0.01832529,101670.0,101650.0,0.13399939]
[1750684140651,0.01832529,101670.0,101650.0,0.13799939]
[1750684140864,0.53260802,101670.0,101650.0,0.13799939]
[1750684141081,0.53260802,101670.0,101650.0,0.13699939]
[1750684141295,0.53260802,101670.0,101650.0,0.13999939]
[1750684141512,0.53260802,101670.0,101650.0,0.007]
[1750684141513,5.54082672,101660.0,101650.0,0.007]
[1750684141736,5.09178446,101660.0,101650.0,0.007]
[1750684141961,0.04178446,101660.0,101650.0,0.007]
[1750684142833,0.04178446,101660.0,101650.0,0.004]
[1750684143058,0.04178446,101660.0,101650.0,0.03]
[1750684143276,0.04178446,101660.0,101650.0,0.032]
[1750684143742,0.53261118,101660.0,101650.0,0.001]
[1750684143968,5.95206108,101660.0,101650.0,0.004]
[1750684144221,5.98416108,101660.0,101650.0,0.007]
[1750684144455,5.98417272,101660.0,101650.0,0.007]
[1750684144675,0.34,101650.0,101630.0,0.07468]
[1750684144929,0.34,101650.0,101630.0,0.13029939]
[1750684144930,0.3817961,101650.0,101630.0,0.13029939]
[1750684145176,0.3817961,101650.0,101630.0,0.13219939]
[1750684145409,0.3817961,101650.0,101640.0,0.13029939]
[1750684145653,0.3817961,101650.0,101640.0,0.16219939]
[1750684146108,0.3817961,101650.0,101640.0,0.16266099]
[1750684146834,0.3817961,101650.0,101640.0,0.16466099]
[1750684147070,0.3817961,101650.0,101640.0,0.13276099]
[1750684147311,0.38180297,101650.0,101640.0,0.13276099]
[1750684148426,0.41125287,101650.0,101640.0,0.13276099]
[1750684149304,0.38180297,101650.0,101640.0,0.14730184]
[1750684150126,0.38182811,101650.0,101640.0,0.14730184]
[1750684151442,0.41127801,101650.0,101640.0,0.14730184]
[1750684151660,0.04182811,101650.0,101640.0,0.17870184]
[1750684152098,0.0183721,101650.0,101640.0,0.17870184]
[1750684153042,0.01838019,101650.0,101640.0,0.17870184]
[1750684153907,0.04190117,101650.0,101640.0,0.17870184]
[1750684154570,0.01838019,101650.0,101640.0,0.17870184]
[1750684155251,0.56421555,101670.0,101650.0,0.04744085]
[1750684155470,0.56684859,101670.0,101650.0,0.14774024]
[1750684155690,1.05267531,101670.0,101650.0,0.17934024]
[1750684155898,0.56184859,101670.0,101650.0,0.17934024]
[1750684156574,0.56384859,101670.0,101650.0,0.17934024]
[1750684156792,0.53739869,101670.0,101650.0,0.17934024]
[1750684157011,5.54082672,101660.0,101650.0,0.11484024]
[1750684157222,0.53272541,101660.0,101640.0,0.1996616]
[1750684157457,0.04189869,101660.0,101640.0,0.13236099]
[1750684157730,0.53272541,101660.0,101640.0,0.10076099]
[1750684157941,5.05,101650.0,101640.0,0.11530184]
[1750684158161,0.5092049,101650.0,101640.0,0.0004616]
[1750684158611,0.509212,101650.0,101640.0,0.0004616]
[1750684159108,0.01838528,101650.0,101640.0,0.0004616]
[1750684159368,0.86040972,101660.0,101640.0,0.0004616]
[1750684159584,5.05,101650.0,101640.0,0.0004616]
[1750684159798,0.01839399,101650.0,101640.0,0.0004616]
[1750684160011,0.01839399,101650.0,101640.0,0.0024616]
[1750684160247,0.01839399,101650.0,101640.0,0.0014616]
[1750684160467,0.01839399,101650.0,101640.0,0.0004616]
[1750684161329,0.01839462,101650.0,101640.0,0.0004616]
[1750684161542,5.05,101650.0,101630.0,0.0308416]
[1750684161750,5.05,101650.0,101630.0,0.13127733]
[1750684162198,5.05,101650.0,101640.0,0.001]
[1750684162380,0.86040972,101660.0,101630.0,0.13053573]
[1750684162592,0.90236621,101660.0,101630.0,0.13053573]
[1750684162892,0.90236621,101660.0,101640.0,0.001]
[1750684163312,0.41153949,101660.0,101630.0,0.13153573]
[1750684163528,0.41153949,101660.0,101630.0,0.13053573]
[1750684163947,0.39413714,101660.0,101630.0,0.13053573]
[1750684164374,0.370583,101660.0,101630.0,0.16143573]
[1750684164796,0.3889941,101660.0,101630.0,0.16143573]
[1750684165005,0.3879941,101660.0,101630.0,0.16143573]
[1750684165478,0.3889941,101660.0,101630.0,0.16143573]
[1750684165675,0.369583,101660.0,101630.0,0.16143573]
[1750684165894,0.370583,101660.0,101630.0,0.16143573]
[1750684166324,0.86140972,101660.0,101630.0,0.16143573]
[1750684166543,5.05,101650.0,101630.0,0.16143573]
[1750684168327,5.05,101650.0,101630.0,0.16243573]
[1750684168964,5.05,101650.0,101630.0,0.16343573]
[1750684169625,5.07413454,101650.0,101630.0,0.16343573]
[1750684169856,0.02413454,101650.0,101630.0,0.16343573]
[1750684170261,5.05,101650.0,101630.0,0.16343573]
[1750684171319,5.05,101650.0,101640.0,0.16279939]
[1750684171522,0.34,101660.0,101640.0,0.17734024]
[1750684171727,0.520081,101670.0,101650.0,0.0328]
[1750684171945,0.54369616,101670.0,101650.0,0.0328]
[1750684172350,1.05845083,101670.0,101650.0,0.0328]
[1750684172576,5.05,101660.0,101640.0,0.34264024]
[1750684172797,5.05,101660.0,101640.0,0.34364024]
[1750684173215,5.05,101660.0,101640.0,0.34264024]
[1750684173663,5.05,101660.0,101650.0,0.0317]
[1750684174320,5.05,101660.0,101650.0,0.16489939]
[1750684174547,5.051,101660.0,101650.0,0.17944024]
[1750684174757,0.001,101660.0,101650.0,0.17944024]
[1750684174964,0.31919842,101670.0,101650.0,0.17944024]
[1750684175175,0.001,101660.0,101650.0,0.17944024]
[1750684175382,0.31919842,101670.0,101650.0,0.17944024]
[1750684175595,0.31919842,101670.0,101650.0,0.18044024]
[1750684176058,0.31919842,101670.0,101650.0,0.17944024]
[1750684176269,0.32019842,101670.0,101650.0,0.17944024]
[1750684176483,0.32019842,101670.0,101650.0,0.17774024]
[1750684177370,0.32019842,101670.0,101650.0,0.14774024]
[1750684177610,0.66019842,101670.0,101660.0,0.13339939]
[1750684178262,0.47572543,101670.0,101660.0,0.13339939]
[1750684178447,0.47472543,101670.0,101660.0,0.13339939]
[1750684178693,0.47472543,101670.0,101660.0,0.10029939]
[1750684181972,0.47472543,101670.0,101660.0,0.13229939]
[1750684182438,0.47472543,101670.0,101660.0,0.10029939]
[1750684183945,0.96555215,101670.0,101660.0,0.10029939]
[1750684184374,0.86727311,101670.0,101660.0,0.10029939]
[1750684187246,5.05,101660.0,101640.0,0.23258]
[1750684187458,5.05,101660.0,101650.0,0.0323]
[1750684187675,0.39254768,101660.0,101650.0,0.0323]
[1750684187898,0.39254768,101660.0,101630.0,0.06423634]
[1750684187899,5.05,101650.0,101630.0,0.06423634]
[1750684188136,0.39254768,101640.0,101630.0,0.16453573]
[1750684188354,0.39254768,101640.0,101630.0,0.13273573]
[1750684189052,0.39254768,101640.0,101630.0,0.16493573]
[1750684189272,0.39254768,101640.0,101630.0,0.16793573]
[1750684189492,0.39254768,101640.0,101630.0,0.13573573]
[1750684190336,0.49090492,101650.0,101630.0,0.16793573]
[1750684190550,0.49090492,101650.0,101630.0,0.17193573]
[1750684191192,0.49090492,101650.0,101630.0,0.16893573]
[1750684191407,0.49090492,101650.0,101630.0,0.16493573]
[1750684191634,0.49090492,101650.0,101630.0,0.16793573]
[1750684193358,0.49090492,101650.0,101640.0,0.0301]
[1750684193590,0.34,101660.0,101640.0,0.0301]
[1750684193810,5.05,101650.0,101640.0,0.0301]
[1750684194472,0.34,101660.0,101640.0,0.0604]
[1750684194694,0.83090492,101660.0,101640.0,0.0614]
[1750684194954,5.05,101650.0,101640.0,0.0614]
[1750684195397,5.05,101650.0,101640.0,0.0634]
[1750684195831,5.05,101650.0,101640.0,0.0624]
[1750684196265,5.54090492,101650.0,101640.0,0.0624]
[1750684196481,0.49090492,101650.0,101640.0,0.0604]
[1750684196918,5.05,101650.0,101640.0,0.0301]
[1750684197194,5.05,101650.0,101630.0,0.40033573]
[1750684197407,5.05,101650.0,101630.0,0.43323573]
[1750684197859,5.05,101650.0,101640.0,0.003]
[1750684198120,0.49090492,101650.0,101640.0,0.003]
[1750684198336,0.83090492,101650.0,101640.0,0.002]
[1750684199726,0.83090492,101650.0,101630.0,0.26643573]
[1750684199996,0.83090492,101650.0,101640.0,0.002]
[1750684200759,0.83090492,101650.0,101640.0,0.001]
[1750684201753,0.83090492,101650.0,101640.0,0.003]
[1750684201972,0.86130492,101650.0,101640.0,0.003]
[1750684202185,0.88660492,101650.0,101640.0,0.003]
[1750684203135,5.93660492,101650.0,101640.0,0.003]
[1750684203351,6.20354431,101650.0,101640.0,0.003]
[1750684203574,6.22700854,101650.0,101640.0,0.003]
[1750684204273,6.22700854,101650.0,101640.0,0.002]
[1750684204511,5.05,101640.0,101630.0,0.10013634]
[1750684204720,6.59957346,101640.0,101630.0,0.10013634]
[1750684204936,6.63766547,101640.0,101630.0,0.10013634]
[1750684205822,6.83443839,101640.0,101630.0,0.10013634]
[1750684206034,6.64750372,101640.0,101630.0,0.10013634]
[1750684206250,6.73155503,101640.0,101630.0,0.10013634]
[1750684206541,6.6573211,101640.0,101630.0,0.10013634]
[1750684206991,5.54090492,101620.0,101610.0,0.0001]
[1750684207198,5.57400492,101620.0,101610.0,0.0001]
[1750684207220,5.1084,101620.0,101610.0,0.0001]
[1750684207491,5.37629939,101620.0,101610.0,0.00014613]
[1750684207714,5.8868842,101620.0,101610.0,0.00014613]
[1750684207927,5.98718359,101620.0,101610.0,0.00014613]
[1750684208111,5.99702388,101620.0,101610.0,0.00014613]
[1750684208355,5.89672449,101620.0,101610.0,0.00114613]
[1750684208774,0.36952289,101610.0,101600.0,0.004]
[1750684209027,0.36952289,101610.0,101600.0,0.00304458]
[1750684209028,6.79190247,101610.0,101600.0,0.00304458]
[1750684209245,6.79190247,101610.0,101580.0,0.0101]
[1750684209246,5.39984261,101590.0,101580.0,0.0101]
[1750684209467,6.19025582,101590.0,101580.0,0.01023654]
[1750684209680,6.21702692,101590.0,101580.0,0.01023654]
[1750684209893,5.71627939,101590.0,101580.0,0.01023654]
[1750684210105,5.49029939,101590.0,101580.0,0.01023654]
[1750684210356,0.34,101590.0,101580.0,0.04063654]
[1750684210579,0.34,101590.0,101580.0,0.07223654]
[1750684211238,0.342,101590.0,101580.0,0.07223654]
[1750684211453,0.342,101590.0,101580.0,0.07423654]
[1750684211687,0.34,101590.0,101580.0,0.07423654]
[1750684211902,0.34,101590.0,101580.0,0.07923654]
[1750684213426,0.34,101590.0,101580.0,0.19407678]
[1750684213649,5.05,101600.0,101590.0,0.0622]
[1750684213853,0.34,101600.0,101590.0,0.0622]
[1750684214940,0.34,101600.0,101590.0,0.16349939]
[1750684216664,0.34,101600.0,101590.0,0.16549939]
[1750684216917,0.34,101610.0,101590.0,0.10329939]
[1750684217124,5.05,101610.0,101600.0,0.062]
[1750684217567,5.88090492,101610.0,101600.0,0.0318]
[1750684217791,0.83090492,101610.0,101600.0,0.0318]
[1750684218454,0.83090492,101610.0,101600.0,0.0348]
[1750684218905,5.88090492,101610.0,101600.0,0.003]
[1750684219862,5.88090492,101610.0,101600.0,0.005]
[1750684220073,5.88090492,101610.0,101600.0,0.0378]
[1750684220291,5.88090492,101610.0,101600.0,0.0692]
[1750684223134,5.88090492,101610.0,101600.0,0.0378]
[1750684223357,5.39,101610.0,101600.0,0.0702]
[1750684223570,5.88090492,101610.0,101600.0,0.0702]
[1750684224463,5.39,101610.0,101600.0,0.0702]
[1750684224689,5.88090492,101610.0,101600.0,0.0702]
[1750684226241,0.34,101610.0,101600.0,0.0702]
[1750684226460,0.34,101610.0,101600.0,0.17049939]
[1750684227560,0.83090492,101610.0,101600.0,0.0702]
[1750684228200,0.83038492,101610.0,101600.0,0.0702]
[1750684228417,0.83038492,101610.0,101600.0,0.07016]
[1750684228657,0.33948,101610.0,101600.0,0.07016]
[1750684228881,0.83038492,101610.0,101600.0,0.07016]
[1750684231042,0.33948,101610.0,101600.0,0.07016]
[1750684231251,0.83038492,101610.0,101600.0,0.07016]
[1750684231483,0.33948,101610.0,101600.0,0.07016]
[1750684231921,0.33948,101610.0,101600.0,0.17045939]
[1750684232392,0.73243943,101610.0,101600.0,0.17045939]
[1750684233953,0.33948,101610.0,101600.0,0.18500024]
[1750684234173,0.33948,101610.0,101600.0,0.57795967]
[1750684234400,0.06859069,101640.0,101620.0,0.0638]
[1750684234617,0.41653313,101640.0,101630.0,0.0638]
[1750684234832,0.75653313,101640.0,101630.0,0.0638]
[1750684235270,0.3635737,101640.0,101630.0,0.0638]
[1750684235485,0.41653313,101640.0,101630.0,0.0638]
[1750684235699,0.75653313,101640.0,101630.0,0.06393654]
[1750684236127,1.14949256,101640.0,101630.0,0.00213654]
[1750684236399,0.85464591,101640.0,101630.0,0.00213654]
[1750684236616,5.90464591,101640.0,101630.0,0.00213654]
[1750684237033,6.39571812,101640.0,101630.0,0.00213654]
[1750684237513,5.90464591,101640.0,101630.0,0.00313654]
[1750684237937,5.90464591,101640.0,101630.0,0.00113654]
[1750684238371,5.90564591,101640.0,101630.0,0.00013654]
[1750684238587,5.90764591,101640.0,101630.0,0.00013654]
[1750684240149,6.39871812,101640.0,101630.0,0.00013654]
[1750684240583,5.90764591,101640.0,101630.0,0.00013654]
[1750684240805,6.39871812,101640.0,101630.0,0.00013654]
[1750684241032,6.70465783,101640.0,101630.0,0.00013654]
[1750684241254,6.71449579,101640.0,101630.0,0.00013654]
[1750684241481,6.9321996,101640.0,101630.0,0.00013654]
[1750684241693,6.92236144,101640.0,101630.0,0.00013654]
[1750684242121,6.9321996,101640.0,101630.0,0.00013654]
[1750684242342,6.93219969,101640.0,101630.0,0.00013654]
[1750684242960,6.9321996,101640.0,101630.0,0.00013654]
[1750684243176,6.94204821,101640.0,101630.0,0.00013654]
[1750684243417,6.93220986,101640.0,101630.0,0.00013654]
[1750684243853,6.95188665,101640.0,101630.0,0.00013654]
[1750684244287,5.95990369,101640.0,101630.0,0.00013654]
[1750684244500,6.94204811,101640.0,101630.0,0.00013654]